Cogmind - Beta 11.1 *** ADVENTURER MODE // 2022.07.05 @ 17:34:07 Player: rei Result: Destroyed by G-67 Veteran with Field Laser Performance ------------- Evolutions (6) 3000 Regions Visited (15) 3000 Robots Destroyed (196) 980 Value Destroyed (8226) 8226 Prototype IDs (20) 400 Alien Tech Used (0) 0 Bonus (1052) 1052 TOTAL SCORE: 16658 Bonus ------- High Alert Combat Kills 368 Follower Combat Kills 384 Met Data Miner 300 Cogmind --------- Core Integrity 0/1150 Matter 300/300 Energy 35/100 System Corruption 12% Temperature Hot (209) Movement Core (50) Location -4/Upper Caves Parts ------- > --- POWER (4) -------- (None) > --- PROPULSION (6) --- (None) > --- UTILITY (6) ------ (None) > --- WEAPON (3) ------- (None) > --- INVENTORY (5) ---- Makeshift Armor Plating Peak State ------------ > --- POWER ------------ Light Angular Momentum Engine Light Antimatter Reactor Light Antimatter Reactor > --- PROPULSION ------- Antigrav System Antigrav System Antigrav System Gyrokinetic Inverter Gyrokinetic Inverter Linear Gravjet > --- UTILITY ---------- Advanced Power Amplifier Advanced Heat Sink Advanced Targeting Computer Advanced Targeting Computer Improved Focal Shield Advanced Thermal Shield > --- WEAPON ----------- High-powered Shock Rifle Long-range Proton Cannon Improved Remote Datajack > --- INVENTORY -------- Improved Arc Projector Hardcell Cannon Micro-nuke Launcher Shock Maul [Rating: 105] Favorites ----------- Power Heavy Deuterium Engine Engine Heavy Deuterium Engine Power Core Fission Core Reactor Antimatter Reactor Propulsion Flexi-carbon Leg Treads Light Treads Leg Flexi-carbon Leg Wheel Armored Wheel Hover Unit Gyrokinetic Inverter Utility Advanced Targeting Computer Device Improved Heat Sink Storage Compact Battery Processor Advanced Targeting Computer Protection Medium Reactive Plating Weapon EM Pulse Cannon Energy Gun Phase Gun Energy Cannon EM Pulse Cannon Ballistic Gun Light Assault Rifle Ballistic Cannon Heavy Assault Cannon Launcher Micro-nuke Launcher Special Weapon Improved Remote Datajack Impact Weapon Shock Maul Slashing Weapon Great Axe Piercing Weapon Heavy Pick Build | -11 -10 -9 -8 -7 -7 -6 -6 -6 -5 -5 -5 -5 -4 -4 -4 ------- Run | Scr Mat Mat Mat Fac Sto Fac Low Dat Pro Fac Upp Upp Fac Upp Upp Slots Evolved 12 | . . 2 2 2 . 2 . . . 2 . . 2 . . Power 3 | . . 1 . . . 1 . . . 1 . . . . . Propulsion 4 | . . 1 . 1 . . . . . . . . 2 . . Utility 4 | . . . 2 1 . 1 . . . . . . . . . Weapon 1 | . . . . . . . . . . 1 . . . . . Parts Attached 181 | 6 6 12 6 12 36 5 . . 5 34 2 1 35 14 7 Power 35 | 1 . 3 . 1 7 . . . 1 10 . . 9 1 2 Engine 15 | 1 . 3 . 1 4 . . . . 5 . . . . 1 Core 12 | . . . . . 3 . . . . 4 . . 3 1 1 Reactor 8 | . . . . . . . . . 1 1 . . 6 . . Propulsion 43 | 2 1 3 . 1 11 4 . . 1 9 . . 8 3 . Treads 5 | 2 1 . . . . . . . . . . . . 2 . Leg 18 | . . . . . 5 4 . . 1 4 . . 4 . . Wheel 11 | . . 3 . 1 6 . . . . . . . . 1 . Hover 9 | . . . . . . . . . . 5 . . 4 . . Flight . | . . . . . . . . . . . . . . . . Utility 43 | 1 3 2 3 2 9 1 . . . 8 1 . 8 3 2 Device 26 | . 1 . 3 2 1 . . . . 7 1 . 8 2 1 Storage 4 | 1 2 . . . . . . . . . . . . 1 . Processor 11 | . . 2 . . 7 1 . . . 1 . . . . . Hackware . | . . . . . . . . . . . . . . . . Protection 2 | . . . . . 1 . . . . . . . . . 1 Artifact . | . . . . . . . . . . . . . . . . Weapon 60 | 2 2 4 3 8 9 . . . 3 7 1 1 10 7 3 Energy Gun 12 | . . 1 . 2 . . . . . 1 . . 2 4 2 Energy Cannon 11 | . . 3 3 4 . . . . . 1 . . . . . Ballistic Gun 5 | 2 1 . . . 1 . . . . 1 . . . . . Ballistic Cannon 12 | . . . . . 5 . . . 2 1 . . 4 . . Launcher 6 | . 1 . . 1 1 . . . . 1 1 . 1 . . Special Weapon 4 | . . . . . . . . . . 1 . 1 . 1 1 Impact Weapon 7 | . . . . 1 1 . . . 1 1 . . 2 1 . Slashing Weapon 1 | . . . . . 1 . . . . . . . . . . Piercing Weapon 2 | . . . . . . . . . . . . . 1 1 . Special Melee Weapon . | . . . . . . . . . . . . . . . . Unidentified Prototypes 10 | . . 2 1 1 4 . . . 1 1 . . . . . Corrupted Parts 1 | . . . . . . . . . . 1 . . . . . System Corruption 3 | . . . . . . . . . . 3 . . . . . Parts Lost 83 | . . . . . 20 . . . 1 16 . . 16 17 13 Power 19 | . . . . . 5 . . . . 5 . . 2 5 2 Propulsion 24 | . . . . . 8 . . . 1 4 . . 5 5 1 Utility 23 | . . . . . 5 . . . . 4 . . 5 4 5 Weapon 17 | . . . . . 2 . . . . 3 . . 4 3 5 Highest Loss Streak 11 | . . . . . 7 . . . 1 3 . . 11 9 11 To Critical Strikes . | . . . . . . . . . . . . . . . . Average Slot Usage (%) 78 | . 94 94 98 93 82 86 86 86 86 78 88 88 70 43 40 Engine 9 | . 14 21 18 15 9 13 13 13 13 9 11 11 3 . . Core 1 | . . . . . 2 . . . . 2 . . 3 2 3 Reactor 1 | . . . . . . . . . 3 1 . . 5 1 . Treads 2 | . 27 9 . . . . . . . . . . . 1 4 Leg 8 | . . . . . 11 26 26 26 22 12 . . 5 5 . Wheel 5 | . . 19 27 24 9 . . . . . . . . 1 . Hover 2 | . . . . . . . . . . 2 23 23 17 . . Device 10 | . 9 . 18 23 5 . . . . 8 17 17 17 19 14 Processor 19 | . . 21 18 15 29 40 40 40 40 22 17 17 5 . . Energy Gun 2 | . . . . 2 . . . . . 1 5 5 3 8 10 Energy Cannon 3 | . . 20 16 10 2 . . . . . 5 5 1 . . Ballistic Gun 1 | . 16 . . . . . . . . 1 . . . . . Ballistic Cannon 3 | . . . . . 5 6 6 6 5 4 . . 2 2 . Naked Turns 2 | . . . . . . . . . . . . . . . 2 Heaviest Build 70 | 12 15 28 31 35 51 34 34 34 50 69 49 42 70 70 40 Greatest Support 88 | 40 40 40 36 61 69 80 80 80 88 83 42 42 85 85 28 Greatest Overweight (x) 13 | . . 1 . . 2 . . . . 13 1 . 2 8 6 Average Overweight (x) . | . . . . . . . . . . . . . . 1 . Largest Inventory Capacity 25 | 8 25 8 5 5 5 5 5 5 5 5 5 5 5 5 5 Average Capacity 5 | 7 8 5 5 5 5 5 5 5 5 5 5 5 5 5 5 Most Carried 6 | 3 3 6 5 5 5 5 5 5 5 5 5 5 5 5 5 Average Carried 3 | 1 2 3 3 4 4 4 5 5 3 3 4 4 4 3 4 Final Capacity 8 | 8 8 5 5 5 5 5 5 5 5 5 5 5 5 5 5 Final Carried 5 | 1 3 5 5 3 5 5 5 5 3 4 4 5 3 5 1 Class Distribution -------------------- 64% | Mutant 13% | Generator-Mutant 10% | Scavenger-Mutant 4% | Generator-Gunner 3% | Commander-Mutant Dominant Class ---------------- Mutant | -10/Materials Mutant | -9/Materials Mutant | -8/Materials Mutant | -7/Factory Mutant | -7/Storage Commander-Mutant | -6/Factory Mutant | -6/Lower Caves Mutant | -6/Data Miner Generator-Mutant | -5/Proximity Caves Scavenger-Mutant | -5/Factory Mutant | -5/Upper Caves Mutant | -5/Upper Caves Generator-Mutant | -4/Factory Mutant | -4/Upper Caves Mutant | -4/Upper Caves Resources | -11 -10 -9 -8 -7 -7 -6 -6 -6 -5 -5 -5 -5 -4 -4 -4 ----------- Run | Scr Mat Mat Mat Fac Sto Fac Low Dat Pro Fac Upp Upp Fac Upp Upp Matter Collected 3697 | 203 82 181 95 140 752 5 29 . 340 748 219 15 466 365 57 Remotely . | . . . . . . . . . . . . . . . . Salvage Created 8737 | 119 128 428 393 1270 2277 28 . . 541 1084 418 89 1066 720 176 Parts 336 | 10 11 20 15 33 102 1 . . 10 43 14 5 36 27 9 Haulers Intercepted 1 | . . . . . . . . . . . . . 1 . . Recyclers Shooed 2 | . 1 . . . 1 . . . . . . . . . . Parts Field Recycled . | . . . . . . . . . . . . . . . . Retrieved Matter . | . . . . . . . . . . . . . . . . Parts Self-Destructed 65 | . . . . . . . . . 19 . 10 5 . 24 7 Prevented 14 | . . . . . . . . . 2 . 9 3 . . . Kills | -11 -10 -9 -8 -7 -7 -6 -6 -6 -5 -5 -5 -5 -4 -4 -4 ------- Run | Scr Mat Mat Mat Fac Sto Fac Low Dat Pro Fac Upp Upp Fac Upp Upp Combat Hostiles Destroyed 153 | . 5 8 5 17 37 1 . . 11 20 8 3 19 16 3 Melee 24 | . . . . 1 19 . . . . 2 . . 1 1 . Guns 23 | . 3 . . 2 1 . . . . 3 1 1 3 6 3 Cannons 68 | . . 6 2 7 16 1 . . 7 9 3 2 7 8 . AOE 10 | . 2 . . . . . . . . 2 3 . 3 . . Classes Destroyed 17 | 3 2 3 2 3 1 . . . . . 1 . 1 1 . Worker 9 | 1 . . . 3 4 . . . . 1 . . . . . Builder 4 | . . . . 2 . . . . . 2 . . . . . Tunneler 2 | 2 . . . . . . . . . . . . . . . Hauler 1 | . . . . . . . . . . . . . 1 . . Recycler 8 | 1 . . . 2 4 . . . . 1 . . . . . Operator 4 | . . 1 1 . 1 . . . . 1 . . . . . Drone 1 | . . . . . . . . . . . 1 . . . . Watcher 16 | . . 2 3 4 2 . . . . 4 . . 1 . . Swarmer 26 | . 2 . . 4 . . . . . 2 . 3 4 10 1 Grunt 73 | . 3 7 2 7 20 . . . 7 11 5 . 6 5 . Brawler 2 | . . . 1 . . . . . 1 . . . . . . Duelist 5 | . . . . 1 2 . . . 2 . . . . . . Protector 2 | . . . . . 2 . . . . . . . . . . Sentry 24 | . . 1 1 4 9 1 . . 1 2 1 . 3 1 . Hunter 7 | . . . 1 . 1 . . . . 2 1 . 2 . . Programmer 13 | . . . . 1 3 . . . . 3 . . 4 . 2 Samaritan 5 | . . . . . . . . . . . . . . 4 1 Best Kill Streak 10 | 4 3 4 6 9 10 1 . . 4 6 5 3 4 6 2 Combat Bots Only 6 | . 3 3 4 4 6 1 . . 4 5 5 3 6 6 2 Max Kills in Single Turn 4 | 1 2 1 2 1 2 1 . . 1 4 2 1 2 1 1 Gunslinging . | . . . . . . . . . . . . . . . . Exploded 2 | . 2 . . . . . . . . 2 2 . 2 . . Melee 1 | . . . . 1 1 . . . . 1 . . 1 1 . Uniques/NPCs Destroyed . | . . . . . . . . . . . . . . . . Combat | -11 -10 -9 -8 -7 -7 -6 -6 -6 -5 -5 -5 -5 -4 -4 -4 -------- Run | Scr Mat Mat Mat Fac Sto Fac Low Dat Pro Fac Upp Upp Fac Upp Upp Damage Taken 10138 | . 232 148 91 419 1973 78 . . 507 1834 126 66 1558 1924 1182 Core 2188 | . 28 45 . 24 474 16 . . 74 352 . 15 341 390 429 Absorbed by Shields 285 | . . . 34 156 95 . . . . . . . . . . Regen/Repaired (Parts) 31 | . . . 31 . . . . . . . . . . . . Core Remaining (%) 79 | 100 88 88 100 . 28 . . . 89 . . 63 . . . Volleys Fired 422 | 9 32 29 15 49 75 8 . . 25 50 23 6 35 51 15 Largest 3 | 2 2 2 2 2 2 1 . . 1 2 2 2 2 3 3 Hottest 270 | 40 50 126 126 126 120 60 . . 60 141 141 141 141 264 270 Shots Fired 667 | 18 36 34 30 96 99 8 . . 25 86 32 8 60 104 31 Gun 249 | 18 33 . . 15 17 . . . . 21 10 5 26 73 31 Cannon 389 | . . 34 30 81 81 8 . . 25 57 9 3 32 29 . Launcher 12 | . 3 . . . 1 . . . . 3 3 . 2 . . Special 17 | . . . . . . . . . . 5 10 . . 2 . Kinetic 265 | 18 33 . . . 60 8 . . 25 66 . . 26 29 . Thermal 140 | . . . . 15 21 . . . . . . . . 73 31 Explosive 12 | . 3 . . . 1 . . . . 3 3 . 2 . . Electromagnetic 233 | . . 34 30 81 17 . . . . 12 19 8 32 . . Robot Hit Streak 66 | 5 13 14 27 60 66 13 . . 21 32 18 25 26 13 10 Robot Miss Streak 2 | 1 2 1 1 1 1 . . . 1 2 1 . 2 2 2 Penetration Max 1 | . . . . . 1 . . . . 1 . . . . . Secondary Targets 1 | . . . . . . . . . . . . . . 1 . Max Gunslinging Chain 1 | . . . . . . . . . . . . . . 1 . Shots Hit Robots 659 | 12 24 30 26 96 146 8 . . 29 82 27 7 65 86 21 Core Hits 257 | 6 12 11 7 29 61 1 . . 8 37 12 3 29 33 8 Critical Kills 2 | . . . . 1 . . . . . 1 . . . . . Critical Parts Destroyed 25 | . 1 . . 3 . . . . 2 6 . . 7 6 . Critical Strikes 53 | . 1 . . 5 12 . . . 8 10 . . 10 7 . Meltdown 1 | . . . . 1 . . . . . . . . . . . Destroy 4 | . 1 . . . . . . . . 1 . . . 2 . Blast 17 | . . . . . 5 . . . 6 3 . . 2 1 . Corrupt 2 | . . . . 1 . . . . . . . . 1 . . Smash 22 | . . . . 3 . . . . 2 6 . . 7 4 . Sever 7 | . . . . . 7 . . . . . . . . . . Melee Attacks 117 | . . . . 10 61 . . . 6 11 . . 16 13 . Impact 55 | . . . . 10 . . . . 6 11 . . 16 12 . Slashing 61 | . . . . . 61 . . . . . . . . . . Piercing 1 | . . . . . . . . . . . . . . 1 . Sneak Attacks 5 | . . . . . 5 . . . . . . . . . . Combat Hostiles . | . . . . . . . . . . . . . . . . Follow-up Attacks . | . . . . . . . . . . . . . . . . Damage Inflicted 21470 | 106 300 977 752 2620 5377 413 . . 1354 2834 881 158 2463 2652 583 Guns 3767 | 106 179 . . 276 230 . . . . 402 248 100 279 1369 578 Cannons 10768 | . . 860 752 1841 2393 413 . . 1031 1500 241 58 902 777 . Explosions 1722 | . 121 117 . 66 141 . . . . 395 392 . 490 . . Melee 5198 | . . . . 437 2603 . . . 323 537 . . 792 506 . Ramming 15 | . . . . . 10 . . . . . . . . . 5 Kinetic 6764 | 106 179 . . . 1861 413 . . 1031 1621 . . 776 777 . Thermal 3192 | . . 117 . 416 564 . . . . 71 . . 77 1369 578 Explosive 1343 | . 121 . . . 93 . . . . 324 392 . 413 . . Electromagnetic 4942 | . . 860 752 1767 230 . . . . 281 489 158 405 . . Impact 2572 | . . . . 437 16 . . . 323 537 . . 792 467 . Slashing 2603 | . . . . . 2603 . . . . . . . . . . Piercing 39 | . . . . . . . . . . . . . . 39 . Highest Corruption 12 | . . . . . 1 1 1 1 1 3 3 3 3 3 12 Average Corruption 2 | . . . . . 1 1 1 1 1 3 3 3 2 3 3 Corruption Purged . | . . . . . . . . . . . . . . . . Corruption Blocked . | . . . . . . . . . . . . . . . . Effects 74 | . . . . . 9 2 2 1 6 4 11 1 7 17 14 Message Errors 20 | . . . . . 3 . . . 3 1 5 . 2 4 2 Matter Fused 20 | . . . . . 2 1 1 . . 2 1 1 1 5 6 Heat Flow Errors 8 | . . . . . 2 . 1 . . . 2 . 1 1 1 Energy Discharges 6 | . . . . . . 1 . 1 . . . . 1 1 2 Parts Rejected 3 | . . . . . . . . . 1 . . . 1 1 . Data Loss (minor) 6 | . . . . . 1 . . . . 1 2 . 1 1 . Data Loss (major) 5 | . . . . . . . . . 1 . 1 . . 2 1 Misfires 2 | . . . . . 1 . . . . . . . . . 1 Alerts 2 | . . . . . . . . . 1 . . . . 1 . Weapon Failures 2 | . . . . . . . . . . . . . . 1 1 Overload Shots . | . . . . . . . . . . . . . . . . Overflow Damage 2065 | . . 55 63 272 333 112 . . 181 410 23 . 436 180 . Projectiles 673 | . . 55 63 80 201 112 . . 74 54 23 . 11 . . Explosions 141 | . . . . . 3 . . . . 63 . . 75 . . Melee 1251 | . . . . 192 129 . . . 107 293 . . 350 180 . Knockbacks 72 | . . . . 6 10 2 . . 7 22 . . 16 9 . Impact 18 | . . . . 6 . . . . 2 4 . . 5 1 . Kinetic 48 | . . . . . 9 2 . . 5 15 . . 10 7 . Secondary 6 | . . . . . 1 . . . . 3 . . 1 1 . Self-Inflicted Damage 187 | . 31 . . 27 57 . . . . 62 . . 8 . 2 Shots 7 | . 2 . . 1 2 . . . . 1 . . 1 . . Rammed 3 | . . . . . . . . . . . . . . . 3 Targets Rammed 4 | . . . . . 1 . . . . . . . . . 3 Kicked 1 | . . . . . 1 . . . . . . . . . . Crushed . | . . . . . . . . . . . . . . . . Highest Temperature 377 | . 40 365 180 144 252 34 255 . 200 377 224 104 314 199 252 Average Temperature 81 | . 24 147 71 43 52 14 130 . 56 97 56 63 92 96 95 Received Heat Transfer 3142 | . 60 117 24 163 773 24 . . 202 624 36 . 267 687 165 Effects 3 | . . 1 . . 1 . . . . . . . 1 . . Shutdowns 1 | . . . . . . . . . . . . . 1 . . Energy Bleed 2 | . . 1 . . 1 . . . . . . . . . . Siege Activations . | . . . . . . . . . . . . . . . . Robots Corrupted 13 | . . 2 3 6 . . . . . . 1 . 1 . . Combat Hostiles 11 | . . 2 3 4 . . . . . . 1 . 1 . . Parts Fried 51 | . . 4 7 20 1 . . . 4 2 3 1 9 . . Impact Corruptions 41 | . . . . 9 . . . . 5 10 . . 13 4 . Robots Melted 2 | . . . . 1 1 . . . . . . . . . . Combat Hostiles 2 | . . . . 1 1 . . . . . . . . . . Parts Melted 13 | . . . . 4 5 . . . . . . . . 3 1 Heat Transferred 4285 | . . 200 . 531 753 . . . . 50 . . 50 1924 777 Parts Sabotaged . | . . . . . . . . . . . . . . . . Parts Stolen . | . . . . . . . . . . . . . . . . Parts Stripped . | . . . . . . . . . . . . . . . . Power Chain Reactions 6 | . . 2 . 2 1 . . . . . . . 1 . . Missiles Intercepted . | . . . . . . . . . . . . . . . . Alert | -11 -10 -9 -8 -7 -7 -6 -6 -6 -5 -5 -5 -5 -4 -4 -4 ------- Run | Scr Mat Mat Mat Fac Sto Fac Low Dat Pro Fac Upp Upp Fac Upp Upp Peak Influence 607 | 20 231 331 326 425 607 287 . . . 300 . . 531 . . Initial 194 | . 11 10 118 126 83 194 . . . 49 . . 65 . . Average 243 | 5 86 171 242 217 420 238 . . . 134 . . 341 . . Maximum Alert Level 2 | . 1 1 1 2 2 1 . . . 1 . . 2 . . Low Security (%) 45 | 100 85 35 37 42 7 21 . . . 84 . . 27 . . Level 1 34 | . 14 64 62 50 32 78 . . . 15 . . 23 . . Level 2 20 | . . . . 6 60 . . . . . . . 49 . . Level 3 . | . . . . . . . . . . . . . . . . Level 4 . | . . . . . . . . . . . . . . . . Level 5 . | . . . . . . . . . . . . . . . . High Security . | . . . . . . . . . . . . . . . . Max Security . | . . . . . . . . . . . . . . . . Squads Dispatched 25 | . 1 1 . 2 10 1 . . 1 4 . . 5 . . Investigation 5 | . 1 . . 1 1 1 . . . 1 . . . . . Extermination 7 | . . . . 1 2 . . . . 2 . . 2 . . Reinforcement 5 | . . 1 . . 1 . . . . 1 . . 2 . . Assault 3 | . . . . . 2 . . . 1 . . . . . . Garrison 5 | . . . . . 4 . . . . . . . 1 . . Intercept . | . . . . . . . . . . . . . . . . Searches Triggered . | . . . . . . . . . . . . . . . . Construction Impeded . | . . . . . . . . . . . . . . . . Haulers Reinforced 2 | . . . . . 1 . . . . . . . 1 . . Active Scanning Responses . | . . . . . . . . . . . . . . . . Cargo Convoy Interrupts . | . . . . . . . . . . . . . . . . Stealth | -11 -10 -9 -8 -7 -7 -6 -6 -6 -5 -5 -5 -5 -4 -4 -4 --------- Run | Scr Mat Mat Mat Fac Sto Fac Low Dat Pro Fac Upp Upp Fac Upp Upp Distress Signals 5 | . . 1 . . 3 . . . 1 . . . . . . Communications Jammed 1 | . . . . . . . . . . . . . 1 . . Distress Signals 1 | . . . . . . . . . . . . . 1 . . Times Spotted 226 | . 7 15 8 24 53 3 . . 15 31 12 4 28 17 9 Peak Tracking Total 8 | . 3 3 4 4 8 1 . . 8 5 5 3 8 5 6 Tactical Retreats 20 | . 1 1 . 1 6 . . . 1 1 2 . 7 . . Traps | -11 -10 -9 -8 -7 -7 -6 -6 -6 -5 -5 -5 -5 -4 -4 -4 ------- Run | Scr Mat Mat Mat Fac Sto Fac Low Dat Pro Fac Upp Upp Fac Upp Upp Traps Triggered 8 | . 2 . . 1 2 1 . . . 2 . . . . . Indirectly . | . . . . . . . . . . . . . . . . Trap Hack Attempts . | . . . . . . . . . . . . . . . . Triggered . | . . . . . . . . . . . . . . . . Disarmed . | . . . . . . . . . . . . . . . . Reprogrammed . | . . . . . . . . . . . . . . . . Reused . | . . . . . . . . . . . . . . . . Traps Extracted . | . . . . . . . . . . . . . . . . Installed . | . . . . . . . . . . . . . . . . Triggered . | . . . . . . . . . . . . . . . . Machines | -11 -10 -9 -8 -7 -7 -6 -6 -6 -5 -5 -5 -5 -4 -4 -4 ---------- Run | Scr Mat Mat Mat Fac Sto Fac Low Dat Pro Fac Upp Upp Fac Upp Upp Machines Disabled 18 | . . 1 . 2 2 2 . . . 7 . . 1 3 . Max in Single Turn 2 | . . 1 . 1 1 1 . . . 2 . . 1 1 . Garrison Access 2 | . . . . . 1 . . . . . . . 1 . . Machines Sabotaged . | . . . . . . . . . . . . . . . . Garrisons Compromised . | . . . . . . . . . . . . . . . . Overloaded Fab Kills . | . . . . . . . . . . . . . . . . Hacking | -11 -10 -9 -8 -7 -7 -6 -6 -6 -5 -5 -5 -5 -4 -4 -4 --------- Run | Scr Mat Mat Mat Fac Sto Fac Low Dat Pro Fac Upp Upp Fac Upp Upp Machines Accessed 24 | . 2 . 2 2 7 1 . 4 . 2 1 . 2 1 . Terminals 14 | . 2 . 1 1 6 1 . . . 1 . . 1 1 . Fabricators 2 | . . . . 1 . . . . . 1 . . . . . Repair Stations 1 | . . . 1 . . . . . . . . . . . . Recycling Units . | . . . . . . . . . . . . . . . . Scanalyzers . | . . . . . . . . . . . . . . . . Garrison Access 2 | . . . . . 1 . . . . . . . 1 . . Total Hacks 65 | . 5 . 3 3 8 2 . 29 . 5 1 . 3 6 . Successful 56 | . 2 . 3 2 7 1 . 29 . 3 1 . 2 6 . Failed 9 | . 3 . . 1 1 1 . . . 2 . . 1 . . Catastrophic 1 | . 1 . . . . . . . . . . . . . . Database Lockouts . | . . . . . . . . . . . . . . . . Manual 8 | . 5 . 1 1 . . . 1 . . . . . . . Terminals 24 | . 5 . 1 1 6 2 . . . 1 . . 2 6 . Fabricators 6 | . . . . 2 . . . . . 4 . . . . . Repair Stations 2 | . . . 2 . . . . . . . . . . . . Recycling Units . | . . . . . . . . . . . . . . . . Scanalyzers . | . . . . . . . . . . . . . . . . Garrison Access 3 | . . . . . 2 . . . . . . . 1 . . Terminal Hacks 49 | . 2 . 1 1 6 1 . 29 . 1 1 . 1 6 . Record 17 | . . . . . . . . 11 . . . . . 6 . Part Schematic 11 | . . . . . . . . 11 . . . . . . . Robot Schematic 4 | . . . . . . . . 4 . . . . . . . Prototype ID Bank 3 | . . . . . . . . 3 . . . . . . . Open Door 5 | . . . . . 4 . . . . . 1 . . . . Open DSF 2 | . . . . . . 1 . . . . . . 1 . . Branch Access Points 3 | . 1 . 1 1 . . . . . . . . . . . Alert Level 1 | . . . . . . . . . . 1 . . . . . Locate Traps 2 | . 1 . . . 1 . . . . . . . . . . Zone Layout 1 | . . . . . 1 . . . . . . . . . . Fabricator Hacks 3 | . . . . 1 . . . . . 2 . . . . . Network Status 1 | . . . . 1 . . . . . . . . . . . Load Schematic 1 | . . . . . . . . . . 1 . . . . . Build 1 | . . . . . . . . . . 1 . . . . . Repair Station Hacks 2 | . . . 2 . . . . . . . . . . . . Scan Component 1 | . . . 1 . . . . . . . . . . . . Repair 1 | . . . 1 . . . . . . . . . . . . Recycling Unit Hacks . | . . . . . . . . . . . . . . . . Scanalyzer . | . . . . . . . . . . . . . . . . Garrison Access Hacks 2 | . . . . . 1 . . . . . . . 1 . . Seal Access 2 | . . . . . 1 . . . . . . . 1 . . Unauthorized Hacks . | . . . . . . . . . . . . . . . . Terminals . | . . . . . . . . . . . . . . . . Fabricators . | . . . . . . . . . . . . . . . . Repair Stations . | . . . . . . . . . . . . . . . . Recycling Units . | . . . . . . . . . . . . . . . . Scanalyzers . | . . . . . . . . . . . . . . . . Garrison Access . | . . . . . . . . . . . . . . . . Data Cores Recovered 2 | . . 1 . . 1 . . . . . . . . . . Used . | . . . . . . . . . . . . . . . . Hacking Detections 5 | . 2 . . . 1 . . . . 1 . . . 1 . Full Trace Events 2 | . 1 . . . . . . . . 1 . . . . . Feedback Events . | . . . . . . . . . . . . . . . . Feedback Blocked . | . . . . . . . . . . . . . . . . Robot Schematics Acquired 4 | . . . . . . . . 4 . . . . . . . Robots Built . | . . . . . . . . . . . . . . . . Authchips . | . . . . . . . . . . . . . . . . Time . | . . . . . . . . . . . . . . . . Total Robot Build Rating . | . . . . . . . . . . . . . . . . Part Schematics Acquired 11 | . . . . . . . . 11 . . . . . . . Parts Built 1 | . . . . . . . . . . 1 . . . . . Authchips . | . . . . . . . . . . . . . . . . Time 117 | . . . . . . . . . . 117 . . . . . Total Part Build Rating 7 | . . . . . . . . . . 7 . . . . . Parts Repaired 1 | . . . 1 . . . . . . . . . . . . Time 38 | . . . 38 . . . . . . . . . . . . Parts Recycled . | . . . . . . . . . . . . . . . . Recycled Matter . | . . . . . . . . . . . . . . . . Retrieved Matter . | . . . . . . . . . . . . . . . . Retrieved Components . | . . . . . . . . . . . . . . . . Parts Scanalyzed . | . . . . . . . . . . . . . . . . Part Schematics Acquired . | . . . . . . . . . . . . . . . . Parts Damaged . | . . . . . . . . . . . . . . . . Bothacking | -11 -10 -9 -8 -7 -7 -6 -6 -6 -5 -5 -5 -5 -4 -4 -4 ------------ Run | Scr Mat Mat Mat Fac Sto Fac Low Dat Pro Fac Upp Upp Fac Upp Upp Used RIF Installer . | . . . . . . . . . . . . . . . . Robots Hacked 3 | . . . . . . . . . . 2 1 . . . . Non-combat 2 | . . . . . . . . . . 1 1 . . . . Combat 1 | . . . . . . . . . . 1 . . . . . Robot Hacks Applied 5 | . . . . . . . . . . 4 1 . . . . parse_system 3 | . . . . . . . . . . 2 1 . . . . no_distress 1 | . . . . . . . . . . 1 . . . . . find_recycling 1 | . . . . . . . . . . 1 . . . . . Relay Couplers Released . | . . . . . . . . . . . . . . . . Fabnet Peak Effective % . | . . . . . . . . . . . . . . . . Robots Rewired 1 | . . . . . . . . . . . 1 . . . . Allies Hacked 1 | . . . . . . 1 . . . . . . . . . Hacks Repelled . | . . . . . . . . . . . . . . . . Allies | -11 -10 -9 -8 -7 -7 -6 -6 -6 -5 -5 -5 -5 -4 -4 -4 -------- Run | Scr Mat Mat Mat Fac Sto Fac Low Dat Pro Fac Upp Upp Fac Upp Upp Total Allies 17 | . . . . . 12 3 . . 1 . 1 . . . . Largest Group 10 | . . . . . 10 7 6 4 5 . 1 1 . . . Highest-Rated Group 175 | . . . . . 173 157 141 79 175 . 41 41 . . . Highest-Rated Ally 96 | . . . . . 31 31 31 31 96 . 41 41 . . . Total Orders 7 | . . . . . 1 6 . . . . . . . . . STAY 2 | . . . . . 1 1 . . . . . . . . . GUARD 4 | . . . . . . 4 . . . . . . . . . AID 1 | . . . . . . 1 . . . . . . . . . Ally Attacks 94 | . . . . . 15 35 7 . 36 . . 1 . . . Total Damage 1745 | . . . . . 209 402 138 . 974 . . 22 . . . Kills 11 | . . . . . 2 2 . . 7 . . . . . . Allies Corrupted . | . . . . . . . . . . . . . . . . Allies Melted . | . . . . . . . . . . . . . . . . Intel | -11 -10 -9 -8 -7 -7 -6 -6 -6 -5 -5 -5 -5 -4 -4 -4 ------- Run | Scr Mat Mat Mat Fac Sto Fac Low Dat Pro Fac Upp Upp Fac Upp Upp Robot Analysis Total . | . . . . . . . . . . . . . . . . Derelict Logs Recovered 6 | . . . . . . . . . 3 . 2 . . 1 . Drone Launches . | . . . . . . . . . . . . . . . . Drone Recoveries . | . . . . . . . . . . . . . . . . Exploration | -11 -10 -9 -8 -7 -7 -6 -6 -6 -5 -5 -5 -5 -4 -4 -4 ------------- Run | Scr Mat Mat Mat Fac Sto Fac Low Dat Pro Fac Upp Upp Fac Upp Upp Turns Passed 10041 | 111 449 379 260 1229 1512 342 226 117 923 1646 497 59 681 1053 557 Spaces Moved 6538 | 55 223 249 185 879 760 228 186 96 680 755 796 69 636 516 225 Core 104 | 11 . . . . 8 . . . . 8 . . . 75 2 Treads 672 | 44 223 58 . . . . . . . . . . . 124 223 Legs 2329 | . . . . . 442 228 186 96 680 453 . . 145 99 . Wheels 1783 | . . 191 185 879 310 . . . . . . . . 218 . Hover 1650 | . . . . . . . . . . 294 796 69 491 . . Flight . | . . . . . . . . . . . . . . . . Fastest Speed 40 | 50 160 90 90 90 50 120 120 120 120 48 48 48 40 80 50 Average Speed 108 | 138 160 106 90 90 115 120 120 120 120 132 53 48 71 141 218 Slowest Speed 700 | 160 160 160 90 92 190 120 120 120 120 700 103 48 190 450 350 Overloaded Moves . | . . . . . . . . . . . . . . . . Propulsion Burnouts . | . . . . . . . . . . . . . . . . Robots Hopped . | . . . . . . . . . . . . . . . . Cave-ins Triggered . | . . . . . . . . . . . . . . . . Exploration Rate (%) 39 | 6 33 24 28 35 86 11 30 74 79 21 85 9 10 64 37 Regions Visited 15 Branch Regions 8 Pre-discovered Areas 3 | . . . . . . . . 1 1 . . . . 1 . Known Exits Taken 3 | . . . . 1 . . . . 1 . 1 . . . . Unknown Exits Taken 12 | 1 1 1 1 . 1 1 1 1 . 1 . 1 1 1 . Scrap Searched 10 | . . . . . . . 1 . 4 . 3 . . 2 . Spaces Dug 5 | . . . . . . . . . . 5 . . . . . Terrain Destroyed 289 | . 27 6 . 1 15 2 . . 7 96 75 . 53 6 1 Melee . | . . . . . . . . . . . . . . . . Projectile 49 | . . . . . 8 2 . . 7 21 . . 4 6 1 AOE 240 | . 27 6 . 1 7 . . . . 75 75 . 49 . . Terrain Rammed . | . . . . . . . . . . . . . . . . Walls Destroyed . | . . . . . . . . . . . . . . . . Machines Disabled . | . . . . . . . . . . . . . . . . Actions | -11 -10 -9 -8 -7 -7 -6 -6 -6 -5 -5 -5 -5 -4 -4 -4 --------- Run | Scr Mat Mat Mat Fac Sto Fac Low Dat Pro Fac Upp Upp Fac Upp Upp Total 8604 | 76 286 330 247 1202 1184 285 189 98 741 1287 841 85 776 716 261 Wait 1127 | . 19 13 38 231 202 41 4 3 14 402 17 9 15 112 7 Move 6523 | 54 222 248 184 878 759 227 185 95 679 754 795 68 635 515 225 Hop . | . . . . . . . . . . . . . . . . Pick Up 146 | 7 5 16 3 11 33 1 . . 5 29 2 1 22 8 3 Fast Attach 17 | . . . . . 4 . . . . 1 . . 4 7 1 Attach 121 | 6 5 4 4 7 24 1 . . 4 25 . . 29 6 6 Detach 11 | . 2 . 1 . . . . . 2 . . . 6 . . Swap 43 | . 1 8 2 5 8 4 . . 1 8 2 1 2 1 . Drop 73 | . . 12 . 11 17 3 . . 5 7 2 . 12 3 1 Fire 422 | 9 32 29 15 49 75 8 . . 25 50 23 6 35 51 15 Melee 117 | . . . . 10 61 . . . 6 11 . . 16 13 . Ram 3 | . . . . . . . . . . . . . . . 3 Kick 1 | . . . . . 1 . . . . . . . . . . Crush . | . . . . . . . . . . . . . . . . Escape Stasis . | . . . . . . . . . . . . . . . . Rewire . | . . . . . . . . . . . . . . . . Trap . | . . . . . . . . . . . . . . . . Miscellaneous . | . . . . . . . . . . . . . . . . Route ------- -11/Scrapyard -10/Materials (discovered 3 exits: *Mat / Min x2) -9/Materials -8/Materials -7/Factory (discovered 5 exits: *Fac x2 / *Sto / *Low x2) -7/Storage -6/Factory -6/Lower Caves -6/Data Miner -5/Proximity Caves -5/Factory (discovered 2 exits: *Upp x2) -5/Upper Caves -5/Upper Caves -4/Factory -4/Upper Caves -4/Upper Caves History --------- Turn | Location | Event 7 | -11/Scrapyard | Discovered new exit (range 14) 112 | -11/Scrapyard | Entered Materials 268 | -10/Materials | Discovered new exit (range 9) 315 | -10/Materials | Build established: Mutant 319 | -10/Materials | Identified exit to Mines 561 | -10/Materials | Entered another Materials area 561 | -9/Materials | Evolved 2 slots: Power x1, Propulsion x1 806 | -9/Materials | Discovered new exit (range 15) 940 | -9/Materials | Entered another Materials area 940 | -8/Materials | Evolved 2 slots: Utility x2 990 | -8/Materials | Repaired EM Pulse Cannon 1161 | -8/Materials | Discovered new exit (range 10) 1200 | -8/Materials | Entered Factory 1200 | -7/Factory | Evolved 2 slots: Propulsion x1, Utility x1 1308 | -7/Factory | Discovered new exit (range 5) 1849 | -7/Factory | Identified exit to Storage 1849 | -7/Factory | Identified exit to Lower Caves 1978 | -7/Factory | Discovered new exit (range 16) 2268 | -7/Factory | Discovered new exit (range 9) 2429 | -7/Factory | Entered Storage 2455 | -7/Storage | Garrison activated, responded to threat 2592 | -7/Storage | Lost 4 parts (2n1u1w) 2806 | -7/Storage | Garrison activated, responded to threat 2861 | -7/Storage | Met a pair of Derelict thieves 2937 | -7/Storage | Build established: Scavenger-Mutant 3039 | -7/Storage | Core integrity fell below 50% 3066 | -7/Storage | Lost 7 parts (2p1n3u1w) 3319 | -7/Storage | Build established: Mutant 3815 | -7/Storage | Discovered new exit (range 16) 3876 | -7/Storage | Assisted by bots powering up and referring to "LRC-V3" 3941 | -7/Storage | Entered Factory 3941 | -6/Factory | Accompanied by 6 allies 3941 | -6/Factory | Evolved 2 slots: Power x1, Utility x1 4055 | -6/Factory | Allied Derelicts emerged from ambush trap array 4210 | -6/Factory | Build established: Commander-Mutant 4241 | -6/Factory | Discovered new exit (range 13) 4283 | -6/Factory | Entered Lower Caves 4283 | -6/Lower Caves | Accompanied by 6 allies 4461 | -6/Lower Caves | Spotted B-75 Beast 4492 | -6/Lower Caves | A Derelict revealed a hidden shortcut to meet someone special 4509 | -6/Lower Caves | Entered Data Miner 4509 | -6/Data Miner | Accompanied by 4 allies 4509 | -6/Data Miner | Discovered new exit (range 6) 4532 | -6/Data Miner | Met Data Miner 4571 | -6/Data Miner | Build established: Mutant 4573 | -6/Data Miner | Learned location of Section 7 (-2) 4573 | -6/Data Miner | Acquired the access code to Warlord's prototype stash 4595 | -6/Data Miner | Received God Mode back door access code from Data Miner 4626 | -6/Data Miner | Entered Proximity Caves 4626 | -5/Proximity Caves | Accompanied by 4 allies 4754 | -5/Proximity Caves | Escorted by Enhanced Grunt 4849 | -5/Proximity Caves | Attracted the attention of an 0b10 outpost 5076 | -5/Proximity Caves | Identified exit to Factory 5135 | -5/Proximity Caves | Learned Factory security intel 5313 | -5/Proximity Caves | Build established: Generator-Mutant 5430 | -5/Proximity Caves | Learned location of Warlord (-5) 5549 | -5/Proximity Caves | Entered Factory 5549 | -5/Factory | Evolved 2 slots: Power x1, Weapon x1 5743 | -5/Factory | Discovered new exit (range 4) 5991 | -5/Factory | Fabricated Micro-nuke Launcher? 6012 | -5/Factory | Build established: Generator-Gunner 6324 | -5/Factory | Build established: Scavenger-Mutant 6417 | -5/Factory | Lost 3 parts (3n) 6601 | -5/Factory | Lost 3 parts (1n2u) 6652 | -5/Factory | Lost 3 parts (2p1w) 7077 | -5/Factory | Discovered new exit (range 10) 7195 | -5/Factory | Entered Upper Caves 7314 | -5/Upper Caves | Identified exit to Upper Caves 7319 | -5/Upper Caves | Learned Factory garrison access intel 7326 | -5/Upper Caves | Build established: Mutant 7553 | -5/Upper Caves | Encountered a Warlord checkpoint 7571 | -5/Upper Caves | Attracted the attention of an 0b10 checkpoint 7692 | -5/Upper Caves | Entered another Upper Caves area 7692 | -5/Upper Caves | Accompanied by 1 ally 7748 | -5/Upper Caves | Discovered new exit (range 4) 7751 | -5/Upper Caves | Entered Factory 7751 | -4/Factory | Evolved 2 slots: Propulsion x2 7752 | -4/Factory | Loaded intel: 3 garrison access locations 7803 | -4/Factory | Discovered new exit (range 8) 7936 | -4/Factory | Garrison activated, responded to threat 7999 | -4/Factory | Lost 3 parts (1n2w) 8059 | -4/Factory | Build established: Generator-Mutant 8270 | -4/Factory | Lost 11 parts (2p3n4u2w) 8432 | -4/Factory | Entered Upper Caves 8462 | -4/Upper Caves | Attracted the attention of an 0b10 base 8599 | -4/Upper Caves | Lost 3 parts (2p1n) 8813 | -4/Upper Caves | Learned Extension trap positions 8813 | -4/Upper Caves | Learned Factory emergency access door positions 8813 | -4/Upper Caves | Learned Factory terminal intel 8821 | -4/Upper Caves | Lost 9 parts (1p3n3u2w) 9086 | -4/Upper Caves | Core integrity fell below 50% 9189 | -4/Upper Caves | Learned Research security intel 9410 | -4/Upper Caves | Build established: Mutant 9477 | -4/Upper Caves | Discovered new exit (range 3) 9485 | -4/Upper Caves | Entered another Upper Caves area 10006 | -4/Upper Caves | Attracted the attention of an 0b10 checkpoint 10027 | -4/Upper Caves | Core integrity fell below 20% 10032 | -4/Upper Caves | System corruption reached 10% 10042 | -4/Upper Caves | Destroyed by G-67 Veteran with Field Laser Last Messages --------------- System corrupted: Energy discharge (-14). Phase Gun destroyed. Penetrated by Slug. Adv. Transmission Jammer destroyed. Quantum Rifle destroyed. Imp. Coolant Injector destroyed. System corrupted by crushing effect (+3). Slug penetrates B-60 Warrior. Phase Gun destroyed. Slammed into B-60 Warrior. Phase Gun destroyed. Slug penetrates B-60 Warrior. Slammed into B-60 Warrior. Destabilizing: Core damaged (-46). System corrupted: Heat flow error (+286). Imp. Remote Datajack destroyed. Slammed into Y-64 Sentinel. Penetrated by Slug. Acquired Mak. Armor Plating. [Achievement: Just Browsing] Map ----- +----------------------------------------------------+ | ?????????????????????????????????????????????????? | | ?????????????????????????????????????????????????? | | ?????????????????????????????????????????????????? | | ?????????????????????????????????????????????????? | | ?????????????????????????????????????????????????? | | ?????????????????????????????????????????????????? | | ?????????????????????????????????????????????????? | | ?????????????????????????????????????????????????? | | ?????????????????????????????????????????????????? | | ?????????????????????????????????????????????????? | | ??????????????????? ??????? ?????????????????????? | | ?????????????????? ??????? ? ? ?????????????????? | | ?????????????????? ?????? ???????????????? | | ??????????????????? ?????? ????????????????? | | ??????????????????? ????? ?????????????????? | | ??????????????????? #???? ???????????????### | | ???????????????????? #??? ????????????????# | | ????????????????????# ??? ?????????????????# | | ???????????????????## ### ??????????????????# | | ??????????????????## ??????????????????## | | ??????????????????# ????????????????????# | | ??????????????????# # ????????????????????## | | ?????????????????## %;#??????????????????### | | ????????????????## s ##????????????????## # | | ???????????????## Ygb###????????????### # | | ???????????????# %@ ;#??????????### # | | ???????????????# g ##????????## # | | ???????????????# ##??????## # | | ???????????????## #####??# # # | | ????????????????## % #?## ### | | ?????????????????# #### # #?## ### | | ??????????????# ## ##### # ##?###?# | | ??????????????# ####% #?## ###???# | | ??????????????# ##??# #?# # ##?## | | ??????????????## #### ##???# ## #### # ## | | ???????????????##???# #????## ## #???# #?# | | ????????????????????# ????## ####????# # ##?? | | ????????????????????# ##### ##??????# #####? | | ????????????????????# #####??# ## ## | | ????????????????????# ##### # | | ???????????????????# ######## %= # # | | ???????????????????? ???????# ! | | ????????????????????????????# %"## # ### | | ????????????????????????????# ""# ##?? | | ????????????????????????????# %#""### # # #??? | | ?????????????????????????? ###### # # #?? | | ???????????????????????? ##????## #?? | | ???????????????????????# #?????? # ?? | | ???????????????????????#### #?????#? ### ? | | ??????????????????????????## #???????####??? | +----------------------------------------------------+ Best States ------------- Heat Dissipation 76 Coolant Potential 80 Energy Generation 63 Energy Capacity 795 Matter Stores 300 Matter Capacity 300 Sight Range 20 Terrain Scan Density 10 Jamming Range 16 Power Amplification 30 Additional Mass Support 9 Armor Coverage 225 Resistance: KI 50 Resistance: TH 50 Resistance: EX 70 Resistance: EM 20 Resistance: I 20 Resistance: S 20 Resistance: P 20 Weapon Cycling 20 Evasion (%) 57 Targeting Accuracy 48 Melee Accuracy 10 Recoil Reduction 2 Energy Filtering 30 Offensive Hacking 10 Item Schematics ----------------- Combat Drone Bay | -6/Data Miner | Free Exp. Cesium-ion Thruster | -6/Data Miner | Free Lgt. Regenerative Plating | -6/Data Miner | Free Imp. Thermal Defense Suite | -6/Data Miner | Free Neutron Cannon | -6/Data Miner | Free Adv. Actuator Array | -6/Data Miner | Free Micro-nuke Launcher | -6/Data Miner | Free Imp. Gyrokinetic Inverter | -6/Data Miner | Free Linear Gravjet | -6/Data Miner | Free Adv. Medium Treads | -6/Data Miner | Free Com. HERF Cannon | -6/Data Miner | Free Robot Schematics ------------------ B-60 Warrior | -6/Data Miner | Free S-27 Virus | -6/Data Miner | Free A-15 Conveyor | -6/Data Miner | Free B-48 Gladiator | -6/Data Miner | Free Fabricated ------------ Micro-nuke Launcher | x1 | -5/Factory Alien Tech Used ----------------- None Achievements -------------- A New Friend Just Browsing Challenges ------------ None Game ------ Seed InsulatedTrapCoupler Manual? 0 Play Time 02:08:09 Cumulative 18.2 hours Start 2022.07.05 @ 02:48:47 End 2022.07.05 @ 17:34:07 Sessions 3 Manual Loads 0 Difficulty Adventurer Special Mode None Game No. 18 Rogue 0 Adventurer 18 Explorer 0 Win Type - Total 0 Types 0/0/0/0/0/0/0/0/0 Lore% 17 Gallery% 26 Achievement% 27 Wizard Run 0 Options --------- ASCII 0 Keyboard 0 Movement Mouse Keybinds 0 Fullscreen 2 Font 18/SmallcapsGlow Map View 76x50 Tactical HUD 0 Map Filters NONE Filters NONE Steam 1 RUN: d7d65418-7f13-4a8e-98f2-4012f0f31dfa